bitfinex-derivatives/quotes_ETHF0:USTF0_20250317
["timestamp","ask_amount","ask_price","bid_price","bid_amount"]
[1742234568790,1.03319,1936.1,1935.9,1.03329]
[1742234568998,1.03319,1936.1,1935.9,2.36059]
[1742234569183,6.6648,1936.2,1936.0,1.03324]
[1742234569385,7.70571276,1936.2,1936.0,2.36054]
[1742234569884,6.67256276,1936.2,1936.0,1.3273]
[1742234570190,1.03319,1936.1,1936.0,1.3273]
[1742234570783,1.03319,1936.1,1935.8,0.7135]
[1742234570988,9.25544276,1936.2,1935.8,2.0408]
[1742234571183,1.03329,1935.9,1935.8,2.0408]
[1742234571378,6.67256276,1936.2,1935.8,2.0408]
[1742234571988,1.03329,1935.9,1935.8,2.0408]
[1742234572181,1.03329,1935.9,1935.7,4.49036]
[1742234572383,1.03329,1935.9,1935.7,1.03336]
[1742234573089,1.03336,1935.8,1935.6,2.38093]
[1742234573292,3.2078,1935.8,1935.5,4.2628]
[1742234573491,1.03345,1935.6,1935.5,2.8873]
[1742234576092,4.24125,1935.6,1935.5,2.8873]
[1742234576293,7.78198269,1935.6,1935.5,2.8873]
[1742234576490,7.78198767,1935.6,1935.5,2.8873]
[1742234576690,7.78198767,1935.6,1935.5,2.87953724]
[1742234576890,1.03351,1935.5,1935.4,0.00776276]
[1742234577090,3.25744767,1935.5,1935.4,0.00776276]
[1742234577494,44.05744767,1935.5,1935.4,0.00776276]
[1742234578096,44.05745353,1935.5,1935.4,0.00776276]
[1742234579200,44.05745353,1935.5,1935.2,2.4564]
[1742234579201,1.03361,1935.3,1935.2,2.4564]
[1742234579498,7.78215353,1935.3,1935.2,1.3677]
[1742234579689,1.03388,1934.8,1934.7,0.04111]
[1742234579889,7.69868,1934.8,1934.7,0.04111]
[1742234580105,7.78245246,1934.8,1934.7,0.04111]
[1742234580300,48.58245246,1934.8,1934.7,0.04111]
[1742234582300,48.49868,1934.8,1934.7,0.04111]
[1742234582500,48.58246214,1934.8,1934.7,0.04111]
[1742234582700,51.08246214,1934.8,1934.7,1e-05]
[1742234582903,1.03393,1934.7,1934.6,2.76e-06]
[1742234583107,2.45201214,1934.7,1934.6,2.76e-06]
[1742234583398,4.95201214,1934.7,1934.6,2.76e-06]
[1742234583694,45.75201214,1934.7,1934.6,2.76e-06]
[1742234583904,2.58497,1934.6,1933.8,4.8577]
[1742234584203,1.03436,1933.9,1933.8,4.8577]
[1742234584505,4.49134,1934.0,1933.9,1.3378]
[1742234584694,3.457,1934.0,1933.9,1.3378]
[1742234585003,4.49131,1934.0,1933.9,1.3378]
[1742234585199,1.03436,1933.9,1933.8,2.07616276]
[1742234585403,2.44666,1933.9,1933.8,2.07616276]
[1742234585604,2.53048005,1933.9,1933.8,2.07616276]
[1742234586301,2.53048005,1933.9,1933.8,0.00776276]
[1742234587291,2.53048681,1933.9,1933.8,0.00776276]
[1742234588301,2.44666,1933.9,1933.8,0.00776276]
[1742234588505,2.53047882,1933.9,1933.8,0.00776276]
[1742234590308,2.53047882,1933.9,1933.8,2.76e-06]
[1742234590509,1.03474,1933.2,1933.1,1.3892]
[1742234590899,1.03479,1933.1,1933.0,5.424]
[1742234591207,45.29379,1933.1,1933.0,2.7425]
[1742234591408,48.50159,1933.1,1933.0,2.7425]
[1742234591606,48.50159,1933.1,1933.0,2.0693]
[1742234592211,51.00159,1933.1,1933.0,2.0693]
[1742234592411,51.08545962,1933.1,1933.0,2.0693]
[1742234592603,51.00159,1933.1,1933.0,2.0693]
[1742234592803,51.08545502,1933.1,1933.0,2.0693]
[1742234593004,45.12645502,1933.1,1933.0,2.0693]
[1742234593200,1.03484,1933.0,1932.9,0.00776276]
[1742234593401,2.37534,1933.0,1932.9,0.00776276]
[1742234595211,1.3405,1933.0,1932.9,0.00776276]
[1742234595417,2.37534,1933.0,1932.9,0.00776276]
[1742234595615,1.3405,1933.0,1932.9,0.00776276]
[1742234595820,2.37534,1933.0,1932.9,1.32496276]
[1742234596609,6.6678,1933.1,1932.9,1.32496276]
[1742234596814,1.03484,1933.0,1932.9,1.32496276]
[1742234597015,8.0109,1933.1,1932.9,1.32496276]
[1742234597223,5.58569,1933.1,1932.9,2.04706276]
[1742234597521,6.6688,1933.1,1932.9,3.08191276]
[1742234597718,6.6688,1933.1,1933.0,1.03484]
[1742234597923,3.461,1933.1,1933.0,2.41174]
[1742234598122,0.00776276,1933.2,1933.1,1.03479]
[1742234598323,0.00776276,1933.2,1933.0,2.41172]
[1742234598623,0.00776276,1933.2,1933.0,2.41174]
[1742234598824,0.00776276,1933.2,1933.1,1.03479]
[1742234599026,3.46,1933.4,1933.2,1.0347]
[1742234599323,1.3431,1933.5,1933.3,1.3769]
[1742234599523,1.03463,1933.4,1933.3,1.3769]
[1742234599721,1.3431,1933.5,1933.3,1.3769]
[1742234599924,1.03463,1933.4,1933.3,1.3769]
[1742234601523,7.70343,1933.4,1933.3,1.3769]
[1742234601718,1.03474,1933.2,1933.1,1.4322]
[1742234601926,4.49574,1933.2,1933.1,1.4322]
[1742234602425,4.49574,1933.2,1933.1,2.0932]
[1742234602718,3.461,1933.2,1933.1,2.0932]
[1742234602923,3.2078,1933.4,1933.1,2.0932]
[1742234603118,3.461,1933.4,1933.2,1.4316]
[1742234603319,4.49567,1933.4,1933.2,1.4316]
[1742234603923,1.03468,1933.3,1933.2,1.4316]
[1742234604123,4.49567,1933.4,1933.2,1.4316]
[1742234604328,4.49565,1933.4,1933.2,1.4316]
[1742234605533,4.49565,1933.4,1933.2,2.46633]
[1742234605725,4.49565,1933.4,1933.2,1.4316]
[1742234605926,1.03468,1933.3,1933.2,1.4316]
[1742234606128,1.3661,1933.3,1932.9,0.72986276]
[1742234606326,1.03484,1933.0,1932.9,2.11196276]
[1742234606925,4.24264,1933.0,1932.9,2.11196276]
[1742234607224,7.78750112,1933.0,1932.9,1.38986276]
[1742234607427,9.15360112,1933.0,1932.9,1.38986276]
[1742234607627,9.06974,1933.0,1932.9,1.38986276]
[1742234608038,9.15359738,1933.0,1932.9,0.00776276]
[1742234608424,9.15359738,1933.0,1932.9,1.38986276]
[1742234608624,9.15359738,1933.0,1932.9,0.00776276]
[1742234609524,9.15360881,1933.0,1932.9,0.00776276]
[1742234611321,9.15360712,1933.0,1932.9,0.00776276]
[1742234611734,49.95360712,1933.0,1932.9,0.00776276]
[1742234612126,78.65160712,1933.0,1932.9,0.00776276]
[1742234612427,78.65160712,1933.0,1932.9,2.76e-06]
[1742234615824,78.56774,1933.0,1932.9,2.76e-06]
[1742234616032,78.65160971,1933.0,1932.9,2.76e-06]
[1742234617437,78.56774,1933.0,1932.9,2.76e-06]
[1742234617638,78.65161899,1933.0,1932.9,2.76e-06]
[1742234618041,81.15161899,1933.0,1932.9,2.76e-06]
[1742234619239,78.65161899,1933.0,1932.9,2.76e-06]
[1742234620637,78.65161045,1933.0,1932.9,2.76e-06]
[1742234621535,75.19061045,1933.0,1932.9,2.76e-06]
[1742234621941,78.65261045,1933.0,1932.9,2.76e-06]
[1742234622435,72.96,1933.0,1932.9,2.76e-06]
[1742234622644,3.2078,1933.2,1933.0,1.03483]
[1742234622840,4.24257,1933.2,1933.1,1.419]
[1742234623033,7.78841871,1933.2,1933.1,1.419]
[1742234623340,6.6698,1933.2,1933.1,1.419]
[1742234623541,3.2078,1933.2,1933.1,1.419]
[1742234623742,3.2078,1933.2,1933.1,2.45379]
[1742234623940,45.29665,1933.4,1933.1,2.45379]
[1742234624140,1.03468,1933.3,1933.2,1.3707]
[1742234624742,2.39068,1933.3,1933.2,1.3707]
[1742234625532,1.03484,1933.0,1932.9,2.76e-06]
[1742234625736,4.49684,1933.0,1932.9,2.76e-06]
[1742234626141,44.262,1933.0,1932.9,1.37070276]
[1742234626350,3.462,1933.0,1932.9,2.40560276]
[1742234626544,3.2078,1933.1,1933.0,1.03484]
[1742234626743,3.2078,1933.1,1933.0,2.37154]
[1742234627140,3.461,1933.2,1933.0,2.37154]
[1742234627339,40.8,1933.3,1933.2,1.03474]
[1742234627536,3.461,1933.3,1933.2,1.03474]
[1742234628349,40.8,1933.4,1933.3,1.03468]
[1742234628647,1.03463,1933.4,1933.2,1.03471]
[1742234628843,33.29916276,1933.5,1933.3,3.06534]
[1742234629046,36.41316276,1933.5,1933.4,1.3367]
[1742234631553,1.03463,1933.4,1933.3,0.694]
[1742234631849,31.91756276,1933.5,1933.3,2.1015]
[1742234632044,36.41315276,1933.5,1933.3,2.1015]
[1742234632248,7.71115276,1933.5,1933.4,1.4075]
[1742234632549,6.67656276,1933.5,1933.4,2.44213]
[1742234632850,3.21556276,1933.5,1933.4,2.44213]
[1742234633755,0.00776276,1933.5,1933.4,2.44213]
[1742234634747,0.00776276,1933.5,1933.4,3.11823]
[1742234635949,0.00776276,1933.5,1933.4,2.0836]
[1742234637147,1.04233276,1933.5,1933.4,2.0836]
[1742234637751,2.37053276,1933.5,1933.4,2.0836]
[1742234638149,5.83053276,1933.5,1933.4,2.0836]
[1742234639749,0.00776276,1933.5,1933.4,2.0836]
[1742234639943,0.00776276,1933.5,1933.4,3.11823]
[1742234640955,31.9048,1934.0,1933.4,13.7574]
[1742234641156,1.03441,1933.8,1933.6,1.03448]
[1742234641358,0.08381573,1933.9,1933.7,2.42097]
[1742234641359,1.0344,1933.9,1933.7,2.42097]
[1742234641559,1.0344,1933.9,1933.8,0.6952]
[1742234641958,0.08381208,1933.9,1933.8,0.6952]
[1742234642157,3.21556276,1934.0,1933.8,0.6952]
[1742234642453,1.03436,1933.9,1933.8,0.6952]
[1742234642662,2.39866,1933.9,1933.8,0.6952]
[1742234644247,2.39866,1933.9,1933.8,1.3598]
[1742234644962,7.70992276,1934.0,1933.8,2.39421]
[1742234645162,0.00776276,1934.0,1933.8,1.3598]
[1742234645357,0.00776276,1934.0,1933.9,1.03436]
[1742234645758,1.40256276,1934.0,1933.9,1.03436]
[1742234646156,0.00776276,1934.0,1933.9,1.03436]
[1742234649960,3.2078,1934.4,1933.9,6.99336]
[1742234650159,1.03423,1934.2,1934.1,1.03423]
[1742234650863,1.03423,1934.2,1934.0,1.03426]
[1742234651058,2.34515,1934.1,1934.0,1.04202276]
[1742234651461,1.3109,1934.1,1934.0,1.04202276]
[1742234652370,2.34515,1934.1,1934.0,0.00776276]
[1742234656560,2.42895306,1934.1,1934.0,0.00776276]
[1742234656956,2.34515,1934.1,1934.0,0.00776276]
[1742234657161,2.42895313,1934.1,1934.0,0.00776276]
[1742234657460,2.42895234,1934.1,1934.0,0.00776276]
[1742234658067,5.80415,1934.1,1934.0,0.00776276]
[1742234658269,4.7699,1934.1,1934.0,0.00776276]
[1742234658469,4.7699,1934.1,1934.0,1.40896276]
[1742234658768,5.80415,1934.1,1934.0,1.40896276]
[1742234659468,5.80415,1934.1,1934.0,0.00776276]
[1742234660465,4.7699,1934.1,1934.0,1.38786276]
[1742234660771,5.80415,1934.1,1934.0,1.38786276]
[1742234660959,2.34515,1934.1,1934.0,2.42217276]
[1742234661160,1.3109,1934.1,1934.0,2.42217276]
[1742234661665,0.00776276,1934.3,1934.1,1.03425]
[1742234661961,1.4177,1934.2,1934.1,1.03425]
[1742234662162,1.04193276,1934.3,1934.2,1.0342]
[1742234662367,0.00776276,1934.3,1934.2,1.0342]
[1742234662871,1.04191276,1934.3,1934.2,1.0342]
[1742234663370,0.00776276,1934.3,1934.2,1.0342]
[1742234663868,1.04191276,1934.3,1934.2,1.0342]
[1742234665265,0.00776276,1934.3,1934.2,1.0342]
[1742234665463,1.04191276,1934.3,1934.2,1.0342]
[1742234665666,1.04191276,1934.3,1934.2,1.7565]
[1742234665857,0.00776276,1934.3,1934.2,1.7565]
[1742234666974,0.00776276,1934.3,1934.2,7.7225]
[1742234668376,1.04191276,1934.3,1934.2,7.7225]
[1742234668562,0.00776276,1934.3,1934.2,7.7225]
[1742234668763,1.41936276,1934.3,1934.2,7.7225]
[1742234669269,0.00776276,1934.3,1934.2,7.7225]
[1742234670670,1.04191276,1934.3,1934.2,7.7225]
[1742234670868,2.35101276,1934.3,1934.2,6.6883]
[1742234671173,1.03425,1934.1,1934.0,3.21556276]
[1742234671368,1.03425,1934.1,1934.0,0.00776276]
[1742234671669,1.03425,1934.1,1934.0,1.04207276]
[1742234671972,2.34335,1934.1,1934.0,0.00776276]
[1742234672268,2.34335,1934.1,1934.0,1.04207276]
[1742234672576,2.34335,1934.1,1934.0,0.00776276]
[1742234673069,1.3091,1934.1,1934.0,1.04207276]
[1742234673468,2.34335,1934.1,1934.0,1.04207276]
[1742234674174,2.34335,1934.1,1934.0,0.00776276]
[1742234674676,2.34335,1934.1,1934.0,1.04207276]
[1742234674872,2.34335,1934.1,1934.0,0.00776276]
[1742234675268,2.34335,1934.1,1934.0,1.04207276]
[1742234675467,2.34335,1934.1,1934.0,0.00776276]
[1742234676573,2.34335,1934.1,1934.0,0.00354247]
[1742234676964,2.34335,1934.1,1933.7,4.2299]
[1742234676965,1.03441,1933.8,1933.7,2.8958]
[1742234677574,1.3545,1933.8,1933.7,2.8958]
[1742234677870,1.3545,1933.8,1933.7,5.26437]
[1742234678062,1.3545,1933.8,1933.7,4.2299]
[1742234678263,2.38891,1933.8,1933.7,5.26437]
[1742234678671,2.38891,1933.8,1933.7,4.2299]
[1742234679068,1.3545,1933.8,1933.7,2.36857]
[1742234679871,1.3545,1933.8,1933.7,5.57637]
[1742234680071,3.458,1933.9,1933.8,1.03441]
[1742234680266,5.93928,1934.1,1933.9,1.03436]
[1742234680470,4.49228,1934.1,1934.0,1.4232]
[1742234686385,1.03431,1934.0,1933.8,3.62207]
[1742234686679,1.03436,1933.9,1933.7,10.20825]
[1742234686883,1.03436,1933.9,1933.7,11.54155]
[1742234687274,6.04366,1934.1,1933.7,11.54157]
[1742234687476,1.03438,1933.9,1933.7,11.54157]
[1742234687679,1.03434,1934.0,1933.8,1.0344]
[1742234687870,1.03434,1934.0,1933.7,11.54153]
[1742234688076,1.03436,1933.9,1933.8,1.4242]
[1742234688377,3.458,1934.1,1933.8,1.4242]
[1742234688578,1.03436,1933.9,1933.8,1.4242]
[1742234688980,1.03441,1933.8,1933.7,9.1738]
[1742234689272,1.03441,1933.8,1933.7,5.966]
[1742234689678,1.75851,1933.8,1933.7,5.966]
[1742234690475,4.4924,1933.9,1933.7,5.966]
[1742234690679,1.03441,1933.8,1933.7,7.3264]
[1742234690883,4.49238,1933.9,1933.7,7.3264]
[1742234691676,1.03441,1933.8,1933.7,7.3264]
[1742234696596,2.40141,1933.8,1933.7,7.3264]
[1742234696886,2.40141,1933.8,1933.7,5.966]
[1742234697481,1.367,1933.8,1933.7,5.966]
[1742234697683,1.367,1933.8,1933.7,7.2796]
[1742234698079,1.367,1933.8,1933.7,8.31407]
[1742234698283,1.367,1933.8,1933.7,7.2796]
[1742234698483,2.40141,1933.8,1933.7,7.2796]
[1742234698786,2.40141,1933.8,1933.7,5.966]
[1742234698987,3.14773201,1933.8,1933.7,5.966]
[1742234699491,43.94773402,1933.8,1933.7,5.966]
[1742234699995,1.03447,1933.7,1933.6,3.33356276]
[1742234700186,5.94007,1933.7,1933.6,3.33356276]
[1742234701288,4.9056,1933.7,1933.6,3.33356276]
[1742234701484,9.14787,1933.7,1933.6,3.33356276]
[1742234701684,9.23169349,1933.7,1933.6,3.33356276]
[1742234703396,9.14787,1933.7,1933.6,3.33356276]
[1742234703695,2.48207,1933.7,1933.6,3.33356276]
[1742234704400,1.4476,1933.7,1933.6,5.47446276]
[1742234704591,2.48207,1933.7,1933.6,5.47446276]
[1742234704793,3.458,1933.8,1933.7,1.03447]
[1742234704997,2.397,1933.9,1933.7,3.18197]
[1742234705398,2.397,1933.9,1933.8,1.4297]
[1742234705596,1.3626,1933.9,1933.8,1.4297]
[1742234705796,2.39696,1933.9,1933.8,1.4297]
[1742234706801,1.03434,1934.0,1933.9,1.03436]
[1742234707294,4.5516,1934.1,1933.8,2.46408]
[1742234707500,1.03436,1933.9,1933.8,2.46408]
[1742234707693,1.03436,1933.9,1933.8,1.03438]
[1742234708389,1.3438,1934.0,1933.9,1.03436]
[1742234708595,2.37811,1934.0,1933.9,1.03436]
[1742234708998,1.03424,1934.2,1933.8,11.75984]
[1742234709302,1.04194276,1934.3,1934.2,1.0342]
[1742234709503,0.00776276,1934.3,1934.2,1.0342]
[1742234709700,0.00776276,1934.3,1934.2,4.242]
[1742234710003,1.03408,1934.5,1934.4,1.03409]
[1742234710500,2.4679,1934.6,1934.5,1.03404]
[1742234710697,1.4339,1934.7,1934.3,3.457]
[1742234711006,1.03395,1934.7,1934.6,1.03395]
[1742234711201,1.04171276,1934.7,1934.6,1.03395]
[1742234711696,1.04169276,1934.7,1934.6,1.03395]
[1742234711902,0.00776276,1934.7,1934.6,1.03395]
[1742234712300,1.03387,1934.9,1934.8,1.03388]
[1742234712502,1.03391,1934.8,1934.7,1.03391]
[1742234712808,1.3908,1934.9,1934.8,1.03388]
[1742234712988,6.75539,1935.2,1934.7,3.457]
[1742234713192,1.03386,1934.9,1934.8,1.03387]
[1742234713391,1.03388,1934.8,1934.7,4.49868276]
[1742234713601,1.03387,1934.9,1934.8,1.03388]
[1742234713903,1.03383,1934.9,1934.8,1.03388]
[1742234714207,1.39856,1935.0,1934.8,1.03388]
[1742234714398,2.43237,1935.0,1934.9,0.6972]
[1742234714600,1.39856,1935.0,1934.9,1.73103]
[1742234714894,43.23233,1935.0,1934.9,0.6972]
[1742234715899,1.03383,1934.9,1934.8,0.6697]
[1742234716202,2.39063,1934.9,1934.8,0.6697]
[1742234718907,2.47439237,1934.9,1934.8,0.6697]
[1742234719306,2.47439271,1934.9,1934.8,0.6697]
[1742234719505,2.39063,1934.9,1934.8,0.6697]
[1742234720103,1.3568,1934.9,1934.8,0.6697]
[1742234720504,4.49755,1935.0,1934.8,1.70358]
[1742234720806,0.00776,1935.0,1934.9,1.03383]
[1742234721099,1.04156,1935.0,1934.8,1.70356]
[1742234721309,2.43406,1935.0,1934.8,1.70356]
[1742234721905,1.40026,1935.0,1934.9,1.03383]
[1742234722207,1.40026,1935.0,1934.8,1.70355]
[1742234722405,1.03383,1934.9,1934.8,0.6697]
[1742234722707,1.03383,1934.9,1934.7,0.00776276]
[1742234722908,1.3925,1934.8,1934.7,1.76065276]
[1742234723405,1.03383,1934.9,1934.7,0.72676276]
[1742234723608,2.42633,1934.9,1934.7,1.76065276]
[1742234724205,2.42636,1934.9,1934.7,1.76068276]
[1742234724402,1.03388,1934.8,1934.7,0.72676276]
[1742234724600,1.4341,1934.8,1934.7,1.76069276]
[1742234724795,1.03386,1934.9,1934.8,1.03388]
[1742234725195,2.47568,1935.0,1934.9,1.03383]
[1742234725398,1.03384,1934.9,1934.8,1.03384]
[1742234726602,1.03384,1934.9,1934.8,2.38094]
[1742234726807,2.47568,1935.0,1934.9,1.03383]
[1742234727012,1.04153,1935.0,1934.9,2.44793]
[1742234727200,1.04153,1935.0,1934.9,5.90293]
[1742234727403,0.00776,1935.0,1934.9,5.90293]
[1742234729210,0.00776,1935.0,1934.9,11.86893]
[1742234732913,1.03358,1935.4,1935.0,2.58444]
[1742234733210,2.41714,1935.3,1935.2,1.03367]
[1742234733410,1.03367,1935.2,1935.1,5.92579]
[1742234733610,2.41717,1935.2,1935.1,5.92579]
[1742234734005,2.41717,1935.2,1935.1,4.8921]
[1742234734205,2.41717,1935.2,1935.1,3.454]
[1742234734609,1.03377,1935.0,1934.9,10.45382]
[1742234734908,1.03377,1935.0,1934.9,10.45383]
[1742234735111,1.03377,1935.0,1934.9,8.43793]
[1742234735307,2.41727,1935.0,1934.9,8.43793]
[1742234737612,1.3835,1935.0,1934.9,8.43793]
[1742234738016,2.41727,1935.0,1934.9,8.43793]
[1742234739003,2.41727,1935.0,1934.9,7.4041]
[1742234739209,2.41727,1935.0,1934.9,5.966]
[1742234740110,1.3835,1935.0,1934.9,6.99983]
[1742234740312,1.3835,1935.0,1934.9,8.34163]
[1742234740618,2.41727,1935.0,1934.9,7.3078]
[1742234741716,1.03383,1934.9,1934.8,0.6765]
[1742234741920,1.03388,1934.8,1934.7,0.00776276]
[1742234742109,4.24168,1934.8,1934.7,0.00776276]
[1742234742716,5.62228,1934.8,1934.7,0.00776276]
[1742234742916,46.42228,1934.8,1934.7,0.00776276]
[1742234743118,5.62228,1934.8,1934.7,0.00776276]
[1742234743315,5.62228,1934.8,1934.7,2.53416276]
[1742234744311,4.5884,1934.8,1934.7,2.53416276]
[1742234744511,5.62228,1934.8,1934.7,2.53416276]
[1742234745918,4.5884,1934.8,1934.7,3.56809276]
[1742234746315,3.2078,1934.8,1934.7,3.56809276]
[1742234746515,1.03383,1934.9,1934.8,1.03387]
[1742234746821,1.03383,1934.9,1934.8,1.3462]
[1742234747022,2.35931,1935.0,1934.8,3.78418]
[1742234747222,1.3255,1935.0,1934.8,2.7503]
[1742234747522,2.35927,1935.0,1934.9,1.4041]
[1742234749224,1.3255,1935.0,1934.9,1.4041]
[1742234749425,1.3255,1935.0,1934.9,2.43793]
[1742234749626,1.3255,1935.0,1934.9,1.4041]
[1742234749924,1.3255,1935.0,1934.9,2.43793]
[1742234750325,6.6608,1935.6,1934.9,7.3701]
[1742234750621,1.3127,1935.3,1935.2,1.03367]
[1742234750816,1.69368,1935.6,1935.4,1.03354]
[1742234751019,1.3127,1935.5,1935.4,1.03354]
[1742234751620,2.34621,1935.5,1935.4,1.03354]
[1742234751822,1.3127,1935.5,1935.4,1.03354]
[1742234752017,2.34621,1935.5,1935.4,1.03354]
[1742234752321,1.3127,1935.5,1935.4,1.03354]
[1742234753018,1.3127,1935.5,1935.3,1.4325]
[1742234753222,1.3127,1935.5,1935.3,2.46607]
[1742234753423,1.3127,1935.5,1935.4,1.03356]
[1742234755527,1.3127,1935.5,1935.4,4.48556]
[1742234755725,2.34621,1935.5,1935.4,3.452]
[1742234755927,1.03356,1935.4,1935.3,5.966]
[1742234756128,3.11866,1935.4,1935.3,5.966]
[1742234757027,6.57066,1935.4,1935.3,5.966]
[1742234758423,5.5371,1935.4,1935.3,6.99961]
[1742234758623,6.57066,1935.4,1935.3,5.966]
[1742234760132,5.5371,1935.4,1935.3,5.966]
[1742234760340,6.57066,1935.4,1935.3,5.966]
[1742234760527,5.5371,1935.4,1935.3,6.99961]
[1742234760728,6.57066,1935.4,1935.3,5.966]
[1742234761424,4.8154,1935.4,1935.3,6.99961]
[1742234761628,3.2078,1935.6,1935.3,5.966]
[1742234761831,4.24126,1935.6,1935.4,2.34794]
[1742234762025,1.4488,1935.5,1935.4,2.34794]
[1742234762423,1.03341,1935.7,1935.4,1.3144]
[1742234762627,1.03351,1935.5,1935.4,4.7664]
[1742234763137,1.03351,1935.5,1935.4,1.3144]
[1742234763835,2.46501,1935.5,1935.4,1.3144]
[1742234764224,2.46501,1935.5,1935.4,0.6557]
[1742234764431,1.03356,1935.4,1935.3,9.1738]
[1742234764632,2.46506,1935.4,1935.3,9.1738]
[1742234766536,2.46506,1935.4,1935.3,10.4835]
[1742234766737,1.4315,1935.4,1935.3,11.51711]
[1742234766937,3.2078,1935.7,1935.3,10.4835]
[1742234767235,1.03351,1935.5,1935.4,4.7617]
[1742234767734,1.03351,1935.5,1935.4,5.79526]
[1742234768130,1.03351,1935.5,1935.4,4.7617]
[1742234768338,1.03356,1935.4,1935.3,9.1738]
[1742234768529,2.35066,1935.4,1935.3,10.4835]
[1742234768731,2.35066,1935.4,1935.3,7.2757]
[1742234768933,2.35066,1935.4,1935.3,8.30931]
[1742234769131,2.35066,1935.4,1935.3,11.51711]
[1742234769333,2.35066,1935.4,1935.3,7.2757]
[1742234769538,1.3171,1935.4,1935.3,8.30931]
[1742234770040,1.03351,1935.5,1935.4,1.03356]
[1742234770240,2.0321,1935.7,1935.4,1.4317]
[1742234770434,1.03345,1935.6,1935.5,1.71918]
[1742234770630,2.35345,1935.6,1935.5,1.71918]
[1742234770835,2.35345,1935.6,1935.5,0.6857]
[1742234771646,1.03351,1935.5,1935.4,1.4317]
[1742234771851,2.35351,1935.5,1935.4,1.4317]
[1742234772752,1.32,1935.5,1935.4,2.46526]
[1742234773354,2.35351,1935.5,1935.4,1.4317]
[1742234773545,2.35351,1935.5,1935.4,2.46526]
[1742234773946,1.32,1935.5,1935.4,2.46526]
[1742234774246,2.35351,1935.5,1935.4,2.46526]
[1742234774642,1.32,1935.5,1935.4,2.46526]
[1742234776156,2.35351,1935.5,1935.4,2.46526]
[1742234776649,1.32,1935.5,1935.4,2.46526]
[1742234776850,1.03351,1935.5,1935.4,2.46522]
[1742234777156,1.03351,1935.5,1935.4,1.4317]
[1742234781659,1.03356,1935.4,1935.3,9.8595]
[1742234781859,2.46066,1935.4,1935.3,11.2854]
[1742234782758,2.46066,1935.4,1935.3,5.966]
[1742234783062,1.03367,1935.2,1935.1,4.6337]
[1742234783253,1.03367,1935.2,1934.8,0.6781]
[1742234783254,1.03372,1935.1,1935.0,0.655]
[1742234783455,1.03383,1934.9,1934.8,0.6781]
[1742234783657,1.03383,1934.9,1934.7,2.53416276]
[1742234783658,1.03388,1934.8,1934.7,2.53416276]
[1742234783855,3.17208,1934.8,1934.7,2.53416276]
[1742234784051,6.62308,1934.8,1934.7,2.53416276]
[1742234785657,6.62308,1934.8,1934.7,3.96856276]
[1742234786959,6.62308,1934.8,1934.7,2.53416276]
[1742234790151,9.12308,1934.8,1934.7,2.52994247]
[1742234790359,9.12308,1934.8,1934.7,1.43602247]
[1742234790360,37.82718,1934.8,1934.7,1.43602247]
[1742234790662,37.82718,1934.8,1934.0,2.0943]
[1742234790663,2.58498,1934.6,1934.0,2.0943]
[1742234790959,1.0342,1934.2,1934.1,1.3776]
[1742234791164,1.03431,1934.0,1933.9,0.6993]
[1742234791663,1.03431,1934.0,1933.9,2.0939]
[1742234793060,1.03436,1933.9,1933.8,0.00776276]
[1742234793263,9.09016,1933.9,1933.8,0.00776276]
[1742234793759,9.17397845,1933.9,1933.8,0.00776276]
[1742234794166,4.848,1933.9,1933.8,0.00776276]
[1742234794668,1.397,1933.9,1933.8,1.45106276]
[1742234794869,1.397,1933.9,1933.8,2.17076276]
[1742234795164,2.43136,1933.9,1933.8,2.17076276]
[1742234795365,1.397,1933.9,1933.8,2.17076276]
[1742234795765,2.43136,1933.9,1933.8,2.17076276]
[1742234796068,1.397,1933.9,1933.8,2.17076276]
[1742234796363,2.43136,1933.9,1933.8,2.17076276]
[1742234796565,2.43136,1933.9,1933.8,0.00776276]
[1742234796566,5.88336,1933.9,1933.8,0.00776276]
[1742234797164,5.96717382,1933.9,1933.8,0.00776276]
[1742234797562,5.88336,1933.9,1933.8,0.00776276]
[1742234798566,5.96717023,1933.9,1933.8,0.00776276]
[1742234804470,46.76717724,1933.9,1933.8,0.00776276]
[1742234805071,5.96717724,1933.9,1933.8,0.00776276]
[1742234806073,5.96717724,1933.9,1933.8,1.33806276]
[1742234806564,5.96717724,1933.9,1933.8,0.66846276]
[1742234807473,5.96717724,1933.9,1933.8,0.00776276]
[1742234807971,5.88336,1933.9,1933.8,0.00776276]
[1742234808472,5.96716973,1933.9,1933.8,0.00776276]
[1742234812367,5.96717828,1933.9,1933.8,0.00776276]
[1742234812766,46.76717828,1933.9,1933.8,0.00776276]
[1742234813974,46.76717814,1933.9,1933.8,0.00776276]
[1742234818573,46.76718085,1933.9,1933.8,0.00776276]
[1742234822075,46.76718085,1933.9,1933.8,2.76e-06]
[1742234826983,5.96718085,1933.9,1933.8,2.76e-06]
[1742234827172,5.88336,1933.9,1933.8,2.76e-06]
[1742234827377,5.96717299,1933.9,1933.8,2.76e-06]
[1742234827572,2.43136,1933.9,1933.8,2.76e-06]
[1742234827879,4.48636,1933.9,1933.8,2.76e-06]
[1742234828583,1.03436,1933.9,1933.8,2.76e-06]
[1742234828775,40.8,1934.0,1933.8,1.03439276]
[1742234829083,3.45976276,1934.1,1933.9,3.07193]
[1742234829280,4.49403276,1934.1,1934.0,2.024]
[1742234829576,45.29403276,1934.1,1934.0,2.024]
[1742234829984,4.49403276,1934.1,1934.0,2.024]
[1742234831583,1.04203276,1934.1,1934.0,2.024]
[1742234832280,0.00776276,1934.1,1934.0,3.05831]
[1742234833382,4.8828,1934.4,1934.0,5.2318]
[1742234833682,1.03418,1934.3,1934.1,2.47723]
[1742234833877,1.03418,1934.3,1934.0,3.9095]
[1742234833878,1.0342,1934.2,1934.0,4.94377]